[Event "Titled Tuesday Blitz December 20 Late 2022"]
[White "Dzierzak, Radoslaw"]
[Black "Torres Dominguez, David"]
[WhiteFideId "1161407"]
[BlackFideId "2220857"]
[WhiteElo "2111"]
[BlackElo "2037"]
[Result "1-0"]
[Round "04"]
[TimeControl "180+1"]
[Date "2022.12.21"]
[WhiteClock "0:00:36"]
[BlackClock "0:00:03"]

1. e4 {[%clk 0:03:00]}  Nc6 {[%clk 0:02:59]} 2. Nf3 {[%clk 0:03:01]}  e5 {[%clk 0:02:59]} 3. Bc4 {[%clk 0:03:00]}  Bc5 {[%clk 0:02:58]} 4. O-O {[%clk 0:03:00]}  Nf6 {[%clk 0:02:58]} 5. d3 {[%clk 0:03:00]}  d6 {[%clk 0:02:57]} 6. c3 {[%clk 0:02:56]}  a6 {[%clk 0:02:57]} 7. Bb3 {[%clk 0:02:56]}  Ba7 {[%clk 0:02:57]} 8. Re1 {[%clk 0:02:50]}  h6 {[%clk 0:02:56]} 9. Nbd2 {[%clk 0:02:37]}  g5 {[%clk 0:02:55]} 10. Nf1 {[%clk 0:02:36]}  g4 {[%clk 0:02:52]} 11. N3d2 {[%clk 0:02:24]}  h5 {[%clk 0:02:49]} 12. Nc4 {[%clk 0:02:22]}  h4 {[%clk 0:02:46]} 13. Be3 {[%clk 0:02:21]}  Nh5 {[%clk 0:02:40]} 14. Bxa7 {[%clk 0:02:20]}  Rxa7 {[%clk 0:02:37]} 15. Nce3 {[%clk 0:02:10]}  Qg5 {[%clk 0:02:25]} 16. Nf5 {[%clk 0:02:10]}  Bxf5 {[%clk 0:01:42]} 17. exf5 {[%clk 0:02:11]}  f6 {[%clk 0:01:33]} 18. d4 {[%clk 0:02:03]}  Ra8 {[%clk 0:01:23]} 19. dxe5 {[%clk 0:02:00]}  fxe5 {[%clk 0:01:19]} 20. Ne3 {[%clk 0:01:38]}  Nf6 {[%clk 0:01:15]} 21. Nd5 {[%clk 0:01:34]}  Nxd5 {[%clk 0:01:00]} 22. Qxd5 {[%clk 0:01:33]}  Qxf5 {[%clk 0:00:54]} 23. Ba4 {[%clk 0:01:31]}  Rc8 {[%clk 0:00:27]} 24. Re4 {[%clk 0:01:20]}  h3 {[%clk 0:00:22]} 25. Rae1 {[%clk 0:01:11]}  Kf8 {[%clk 0:00:14]} 26. Qd1 {[%clk 0:00:49]}  hxg2 {[%clk 0:00:13]} 27. Rxg4 {[%clk 0:00:44]}  Qh5 {[%clk 0:00:08]} 28. Qf3+ {[%clk 0:00:42]}  Ke8 {[%clk 0:00:03]} 29. Bxc6+ {[%clk 0:00:36]}  bxc6 {[%clk 0:00:03]} 30. Qxc6+ {[%clk 0:00:36]} 1-0


[Site "https://www.chess.com"]

[Event "Titled Tuesday Blitz December 20 Late 2022"]
[White "Eljanov, Pavel"]
[Black "Sielecki, Christof"]
[WhiteFideId "14102951"]
[BlackFideId "4620437"]
[WhiteElo "2598"]
[BlackElo "2443"]
[Result "1-0"]
[Round "04"]
[TimeControl "180+1"]
[Date "2022.12.20"]
[WhiteClock "0:00:11"]
[BlackClock "0:00:10"]

1. e4 {[%clk 0:03:00]}  c5 {[%clk 0:02:59]} 2. Nf3 {[%clk 0:03:00]}  a6 {[%clk 0:02:59]} 3. c3 {[%clk 0:02:57]}  d5 {[%clk 0:02:59]} 4. exd5 {[%clk 0:02:56]}  Qxd5 {[%clk 0:03:00]} 5. d4 {[%clk 0:02:54]}  e6 {[%clk 0:03:00]} 6. Be3 {[%clk 0:02:52]}  Nd7 {[%clk 0:02:59]} 7. c4 {[%clk 0:02:44]}  Qc6 {[%clk 0:02:59]} 8. Nc3 {[%clk 0:02:43]}  Ngf6 {[%clk 0:02:58]} 9. d5 {[%clk 0:02:36]}  exd5 {[%clk 0:02:58]} 10. cxd5 {[%clk 0:02:37]}  Qc7 {[%clk 0:02:58]} 11. a4 {[%clk 0:02:30]}  b6 {[%clk 0:02:57]} 12. h3 {[%clk 0:02:23]}  Bd6 {[%clk 0:02:57]} 13. Bc4 {[%clk 0:02:22]}  O-O {[%clk 0:02:56]} 14. O-O {[%clk 0:02:22]}  Bb7 {[%clk 0:02:54]} 15. Qc2 {[%clk 0:02:15]}  Rfe8 {[%clk 0:02:52]} 16. Rad1 {[%clk 0:02:07]}  Ne5 {[%clk 0:02:45]} 17. Nxe5 {[%clk 0:02:05]}  Rxe5 {[%clk 0:02:44]} 18. Bf4 {[%clk 0:01:57]}  Ree8 {[%clk 0:02:25]} 19. Bxd6 {[%clk 0:01:55]}  Qxd6 {[%clk 0:02:26]} 20. Rfe1 {[%clk 0:01:48]}  g6 {[%clk 0:02:25]} 21. Qd2 {[%clk 0:01:35]}  Kg7 {[%clk 0:02:23]} 22. b3 {[%clk 0:01:33]}  Rxe1+ {[%clk 0:02:18]} 23. Rxe1 {[%clk 0:01:33]}  Re8 {[%clk 0:02:18]} 24. Rxe8 {[%clk 0:01:32]}  Nxe8 {[%clk 0:02:19]} 25. Qe2 {[%clk 0:01:25]}  Nf6 {[%clk 0:02:10]} 26. Bxa6 {[%clk 0:01:18]}  Nxd5 {[%clk 0:01:40]} 27. Qd2 {[%clk 0:00:55]}  Bxa6 {[%clk 0:01:37]} 28. Nxd5 {[%clk 0:00:54]}  Bb7 {[%clk 0:01:09]} 29. Qc3+ {[%clk 0:00:55]}  f6 {[%clk 0:01:10]} 30. Ne3 {[%clk 0:00:55]}  Qd4 {[%clk 0:00:40]} 31. Qxd4 {[%clk 0:00:55]}  cxd4 {[%clk 0:00:41]} 32. Nc4 {[%clk 0:00:55]}  Bd5 {[%clk 0:00:37]} 33. Nxb6 {[%clk 0:00:53]}  Bxb3 {[%clk 0:00:33]} 34. Kf1 {[%clk 0:00:53]}  Bc2 {[%clk 0:00:19]} 35. Ke2 {[%clk 0:00:41]}  Be4 {[%clk 0:00:19]} 36. f3 {[%clk 0:00:42]}  Bb7 {[%clk 0:00:19]} 37. Kd3 {[%clk 0:00:40]}  Kh6 {[%clk 0:00:20]} 38. Kxd4 {[%clk 0:00:37]}  Kg5 {[%clk 0:00:20]} 39. Nd5 {[%clk 0:00:38]}  f5 {[%clk 0:00:20]} 40. g3 {[%clk 0:00:35]}  Ba6 {[%clk 0:00:17]} 41. h4+ {[%clk 0:00:35]}  Kh6 {[%clk 0:00:17]} 42. a5 {[%clk 0:00:31]}  g5 {[%clk 0:00:17]} 43. hxg5+ {[%clk 0:00:30]}  Kxg5 {[%clk 0:00:18]} 44. Nb4 {[%clk 0:00:18]}  Bb7 {[%clk 0:00:17]} 45. Ke3 {[%clk 0:00:18]}  h5 {[%clk 0:00:17]} 46. a6 {[%clk 0:00:18]}  Ba8 {[%clk 0:00:17]} 47. a7 {[%clk 0:00:18]}  f4+ {[%clk 0:00:18]} 48. gxf4+ {[%clk 0:00:18]}  Kf5 {[%clk 0:00:19]} 49. Na6 {[%clk 0:00:14]}  h4 {[%clk 0:00:19]} 50. Nc7 {[%clk 0:00:14]}  Bb7 {[%clk 0:00:19]} 51. Kf2 {[%clk 0:00:12]}  Kxf4 {[%clk 0:00:19]} 52. Ne6+ {[%clk 0:00:12]}  Ke5 {[%clk 0:00:19]} 53. Nc5 {[%clk 0:00:11]}  Ba8 {[%clk 0:00:18]} 54. Nd3+ {[%clk 0:00:10]}  Kd4 {[%clk 0:00:18]} 55. f4 {[%clk 0:00:10]}  Kd5 {[%clk 0:00:17]} 56. Kg1 {[%clk 0:00:10]}  Ke4 {[%clk 0:00:16]} 57. Kh2 {[%clk 0:00:10]}  Kd5 {[%clk 0:00:10]} 58. Kh3 {[%clk 0:00:11]}  Kc6 {[%clk 0:00:11]} 59. f5 {[%clk 0:00:10]}  Kb6 {[%clk 0:00:10]} 60. f6 {[%clk 0:00:11]}  Bd5 {[%clk 0:00:11]} 61. f7 {[%clk 0:00:11]}  Bxf7 {[%clk 0:00:10]} 62. a8=Q {[%clk 0:00:11]} 1-0


[Site "https://www.chess.com"]

[Event "Titled Tuesday Blitz December 20 Late 2022"]
[White "Ferreira, Vitor Hugo Vieira"]
[Black "Dong, Bao Nghia"]
[WhiteFideId "2119765"]
[BlackFideId "12400343"]
[WhiteElo "2146"]
[BlackElo "2305"]
[Result "1-0"]
[Round "04"]
[TimeControl "180+1"]
[Date "2022.12.21"]
[WhiteClock "0:00:42"]
[BlackClock "0:01:57"]

1. e4 {[%clk 0:03:00]}  e6 {[%clk 0:02:58]} 2. d4 {[%clk 0:03:00]}  d5 {[%clk 0:02:59]} 3. e5 {[%clk 0:03:00]}  c5 {[%clk 0:02:59]} 4. c3 {[%clk 0:03:01]}  Nc6 {[%clk 0:03:00]} 5. Nf3 {[%clk 0:03:01]}  Qb6 {[%clk 0:03:01]} 6. Bd3 {[%clk 0:03:01]}  cxd4 {[%clk 0:03:01]} 7. O-O {[%clk 0:03:02]}  Nh6 {[%clk 0:03:01]} 8. cxd4 {[%clk 0:02:57]}  Bd7 {[%clk 0:02:57]} 9. Nc3 {[%clk 0:02:48]}  Nxd4 {[%clk 0:02:49]} 10. Nxd4 {[%clk 0:02:43]}  Qxd4 {[%clk 0:02:49]} 11. Nb5 {[%clk 0:02:31]}  Qxe5 {[%clk 0:02:48]} 12. f4 {[%clk 0:02:32]}  Qb8 {[%clk 0:02:47]} 13. f5 {[%clk 0:02:31]}  a6 {[%clk 0:02:38]} 14. Bf4 {[%clk 0:02:29]}  e5 {[%clk 0:02:29]} 15. Bxe5 {[%clk 0:02:26]}  Qxe5 {[%clk 0:02:27]} 16. Re1 {[%clk 0:02:26]}  Bc5+ {[%clk 0:02:27]} 17. Kh1 {[%clk 0:02:26]}  Qxe1+ {[%clk 0:02:27]} 18. Qxe1+ {[%clk 0:02:27]}  Kf8 {[%clk 0:02:28]} 19. Qc3 {[%clk 0:02:14]}  Rc8 {[%clk 0:02:26]} 20. f6 {[%clk 0:02:07]}  g6 {[%clk 0:02:20]} 21. Rc1 {[%clk 0:01:33]}  Ng4 {[%clk 0:02:14]} 22. Rc2 {[%clk 0:01:12]}  Nf2+ {[%clk 0:02:07]} 23. Rxf2 {[%clk 0:01:12]}  Bxf2 {[%clk 0:02:07]} 24. Qa3+ {[%clk 0:01:05]}  Bc5 {[%clk 0:02:03]} 25. b4 {[%clk 0:01:04]}  Bd4 {[%clk 0:02:02]} 26. Nxd4 {[%clk 0:00:58]}  Kg8 {[%clk 0:02:02]} 27. h3 {[%clk 0:00:55]}  h5 {[%clk 0:02:01]} 28. b5 {[%clk 0:00:54]}  axb5 {[%clk 0:02:00]} 29. Qe7 {[%clk 0:00:53]}  Be8 {[%clk 0:02:00]} 30. Ne6 {[%clk 0:00:51]}  Kh7 {[%clk 0:01:58]} 31. Ng5+ {[%clk 0:00:48]}  Kh6 {[%clk 0:01:57]} 32. Nxf7+ {[%clk 0:00:46]}  Bxf7 {[%clk 0:01:57]} 33. Qxf7 {[%clk 0:00:45]}  Rhg8 {[%clk 0:01:57]} 34. Qxd5 {[%clk 0:00:42]}  Rgd8 {[%clk 0:01:58]} 35. Qe4 {[%clk 0:00:41]}  Rg8 {[%clk 0:01:57]} 36. f7 {[%clk 0:00:42]}  Rg7 {[%clk 0:01:57]} 37. Qf4+ {[%clk 0:00:42]} 1-0


[Site "https://www.chess.com"]

[Event "Titled Tuesday Blitz December 20 Late 2022"]
[White "Fiorito, Joaquin"]
[Black "Tatarinov, Dmitry"]
[WhiteFideId "180173"]
[BlackFideId "24160067"]
[WhiteElo "2157"]
[BlackElo "2326"]
[Result "0-1"]
[Round "04"]
[TimeControl "180+1"]
[Date "2022.12.21"]
[WhiteClock "0:01:47"]
[BlackClock "0:02:03"]

1. d4 {[%clk 0:03:00]}  Nf6 {[%clk 0:02:59]} 2. Nc3 {[%clk 0:03:01]}  d5 {[%clk 0:02:59]} 3. Bf4 {[%clk 0:03:01]}  a6 {[%clk 0:02:59]} 4. e3 {[%clk 0:03:01]}  b5 {[%clk 0:02:59]} 5. Nf3 {[%clk 0:03:00]}  Bb7 {[%clk 0:02:59]} 6. Bd3 {[%clk 0:02:58]}  e6 {[%clk 0:03:00]} 7. a3 {[%clk 0:02:58]}  c5 {[%clk 0:03:00]} 8. dxc5 {[%clk 0:02:58]}  Bxc5 {[%clk 0:03:00]} 9. O-O {[%clk 0:02:59]}  Nc6 {[%clk 0:03:01]} 10. e4 {[%clk 0:02:58]}  d4 {[%clk 0:02:49]} 11. Ne2 {[%clk 0:02:58]}  h6 {[%clk 0:02:44]} 12. Bd2 {[%clk 0:02:49]}  e5 {[%clk 0:02:40]} 13. Ng3 {[%clk 0:02:40]}  g6 {[%clk 0:02:40]} 14. Ne1 {[%clk 0:02:39]}  Qe7 {[%clk 0:02:32]} 15. b4 {[%clk 0:02:36]}  Bb6 {[%clk 0:02:32]} 16. f4 {[%clk 0:02:34]}  exf4 {[%clk 0:02:31]} 17. Bxf4 {[%clk 0:02:35]}  Ne5 {[%clk 0:02:29]} 18. Nf3 {[%clk 0:02:35]}  Nfg4 {[%clk 0:02:26]} 19. Nxe5 {[%clk 0:02:30]}  Nxe5 {[%clk 0:02:26]} 20. Qe2 {[%clk 0:02:26]}  h5 {[%clk 0:02:21]} 21. Qf2 {[%clk 0:02:21]}  Ng4 {[%clk 0:02:18]} 22. Qe2 {[%clk 0:02:20]}  Ne3 {[%clk 0:02:16]} 23. Bxe3 {[%clk 0:02:18]}  dxe3 {[%clk 0:02:17]} 24. Rf3 {[%clk 0:02:07]}  O-O {[%clk 0:02:16]} 25. Nf1 {[%clk 0:02:07]}  Bxe4 {[%clk 0:02:14]} 26. Bxe4 {[%clk 0:02:07]}  Qxe4 {[%clk 0:02:15]} 27. Nxe3 {[%clk 0:02:06]}  Rae8 {[%clk 0:02:12]} 28. Re1 {[%clk 0:02:05]}  Re7 {[%clk 0:02:08]} 29. Kf1 {[%clk 0:01:54]}  Rfe8 {[%clk 0:02:08]} 30. Kf2 {[%clk 0:01:48]}  Qh4+ {[%clk 0:02:04]} 31. Kg1 {[%clk 0:01:47]}  Rxe3 {[%clk 0:02:03]} 0-1


[Site "https://www.chess.com"]

[Event "Titled Tuesday Blitz December 20 Late 2022"]
[White "Flynn, Jacob"]
[Black "Acosta Cruz, Oscar Yosimar"]
[WhiteFideId "2509393"]
[BlackFideId "5111269"]
[WhiteElo "2053"]
[BlackElo "2147"]
[Result "1-0"]
[Round "04"]
[TimeControl "180+1"]
[Date "2022.12.21"]
[WhiteClock "0:00:18"]
[BlackClock "0:00:03"]

1. e4 {[%clk 0:03:00]}  c5 {[%clk 0:02:58]} 2. Nf3 {[%clk 0:03:00]}  d6 {[%clk 0:02:58]} 3. Bc4 {[%clk 0:02:56]}  e6 {[%clk 0:02:58]} 4. O-O {[%clk 0:02:56]}  Nf6 {[%clk 0:02:55]} 5. d3 {[%clk 0:02:54]}  a6 {[%clk 0:02:55]} 6. a3 {[%clk 0:02:54]}  Be7 {[%clk 0:02:54]} 7. Ba2 {[%clk 0:02:54]}  b6 {[%clk 0:02:54]} 8. Nc3 {[%clk 0:02:55]}  Bb7 {[%clk 0:02:54]} 9. Bg5 {[%clk 0:02:54]}  O-O {[%clk 0:02:54]} 10. Re1 {[%clk 0:02:46]}  Nc6 {[%clk 0:02:54]} 11. Qd2 {[%clk 0:02:45]}  Qc7 {[%clk 0:02:53]} 12. h3 {[%clk 0:02:41]}  Rac8 {[%clk 0:02:47]} 13. Rad1 {[%clk 0:02:40]}  b5 {[%clk 0:02:46]} 14. Ne2 {[%clk 0:02:40]}  Rfd8 {[%clk 0:02:13]} 15. Ng3 {[%clk 0:02:39]}  Na5 {[%clk 0:02:07]} 16. h4 {[%clk 0:02:14]}  c4 {[%clk 0:02:05]} 17. d4 {[%clk 0:02:07]}  Nc6 {[%clk 0:02:03]} 18. c3 {[%clk 0:02:06]}  Nd7 {[%clk 0:01:49]} 19. Be3 {[%clk 0:02:03]}  Nf8 {[%clk 0:01:48]} 20. h5 {[%clk 0:02:00]}  Nb8 {[%clk 0:01:32]} 21. Bb1 {[%clk 0:02:00]}  Nbd7 {[%clk 0:01:31]} 22. h6 {[%clk 0:01:56]}  g6 {[%clk 0:01:31]} 23. Bg5 {[%clk 0:01:55]}  f6 {[%clk 0:01:30]} 24. Be3 {[%clk 0:01:53]}  e5 {[%clk 0:01:27]} 25. d5 {[%clk 0:01:49]}  Nc5 {[%clk 0:01:25]} 26. Nh2 {[%clk 0:01:47]}  Rb8 {[%clk 0:01:23]} 27. Qe2 {[%clk 0:01:46]}  Bc8 {[%clk 0:01:23]} 28. Qf3 {[%clk 0:01:43]}  a5 {[%clk 0:01:21]} 29. Ng4 {[%clk 0:01:43]}  Bxg4 {[%clk 0:01:16]} 30. Qxg4 {[%clk 0:01:44]}  b4 {[%clk 0:01:09]} 31. axb4 {[%clk 0:01:35]}  axb4 {[%clk 0:01:09]} 32. Nf5 {[%clk 0:01:30]}  bxc3 {[%clk 0:01:05]} 33. bxc3 {[%clk 0:01:25]}  Rb3 {[%clk 0:00:57]} 34. Bxc5 {[%clk 0:01:23]}  Qxc5 {[%clk 0:00:55]} 35. Nxe7+ {[%clk 0:01:23]}  Kh8 {[%clk 0:00:55]} 36. Nc6 {[%clk 0:01:17]}  Ra8 {[%clk 0:00:53]} 37. Qh4 {[%clk 0:00:43]}  Nd7 {[%clk 0:00:44]} 38. Rc1 {[%clk 0:00:34]}  Rb2 {[%clk 0:00:42]} 39. Rf1 {[%clk 0:00:26]}  Qb6 {[%clk 0:00:34]} 40. Bc2 {[%clk 0:00:26]}  Raa2 {[%clk 0:00:33]} 41. Bd1 {[%clk 0:00:26]}  Kg8 {[%clk 0:00:17]} 42. Bg4 {[%clk 0:00:26]}  g5 {[%clk 0:00:14]} 43. Be6+ {[%clk 0:00:18]}  Kf8 {[%clk 0:00:10]} 44. Qh5 {[%clk 0:00:18]}  Rxf2 {[%clk 0:00:03]} 45. Qf7# {[%clk 0:00:18]} 1-0


[Site "https://www.chess.com"]

[Event "Titled Tuesday Blitz December 20 Late 2022"]
[White "Gatterer, Florian"]
[Black "Solon, Nathan"]
[WhiteFideId "811688"]
[BlackFideId "2017229"]
[WhiteElo "2218"]
[BlackElo "2646"]
[Result "0-1"]
[Round "04"]
[TimeControl "180+1"]
[Date "2022.12.21"]
[WhiteClock "0:00:07"]
[BlackClock "0:00:30"]

1. b3 {[%clk 0:03:00]}  e5 {[%clk 0:02:59]} 2. Bb2 {[%clk 0:03:00]}  Nc6 {[%clk 0:02:59]} 3. e3 {[%clk 0:03:00]}  d5 {[%clk 0:02:59]} 4. Bb5 {[%clk 0:02:56]}  Ne7 {[%clk 0:02:59]} 5. Nf3 {[%clk 0:02:51]}  e4 {[%clk 0:02:58]} 6. Nd4 {[%clk 0:02:50]}  Bd7 {[%clk 0:02:47]} 7. Nxc6 {[%clk 0:02:50]}  bxc6 {[%clk 0:02:48]} 8. Be2 {[%clk 0:02:49]}  Ng6 {[%clk 0:02:46]} 9. c3 {[%clk 0:02:47]}  Bd6 {[%clk 0:02:42]} 10. d4 {[%clk 0:02:27]}  Qg5 {[%clk 0:02:40]} 11. g3 {[%clk 0:02:12]}  Bh3 {[%clk 0:02:28]} 12. c4 {[%clk 0:02:10]}  h5 {[%clk 0:02:26]} 13. c5 {[%clk 0:01:49]}  Be7 {[%clk 0:02:24]} 14. Nc3 {[%clk 0:01:49]}  h4 {[%clk 0:02:19]} 15. g4 {[%clk 0:01:49]}  Bg2 {[%clk 0:02:18]} 16. Rg1 {[%clk 0:01:47]}  h3 {[%clk 0:02:18]} 17. Qd2 {[%clk 0:01:33]}  Nh4 {[%clk 0:02:10]} 18. O-O-O {[%clk 0:01:32]}  Qf6 {[%clk 0:01:55]} 19. Qe1 {[%clk 0:01:13]}  Nf3 {[%clk 0:01:53]} 20. Bxf3 {[%clk 0:01:11]}  Qxf3 {[%clk 0:01:54]} 21. Ne2 {[%clk 0:00:59]}  Bh4 {[%clk 0:01:49]} 22. Ng3 {[%clk 0:00:50]}  Qxg4 {[%clk 0:01:47]} 23. Qa5 {[%clk 0:00:46]}  Kd7 {[%clk 0:01:44]} 24. b4 {[%clk 0:00:45]}  Rhb8 {[%clk 0:01:41]} 25. a4 {[%clk 0:00:44]}  a6 {[%clk 0:01:37]} 26. Bc3 {[%clk 0:00:38]}  Qf3 {[%clk 0:01:32]} 27. Rd2 {[%clk 0:00:19]}  f5 {[%clk 0:01:27]} 28. Ne2 {[%clk 0:00:14]}  Bxf2 {[%clk 0:01:24]} 29. Nf4 {[%clk 0:00:12]}  Bxg1 {[%clk 0:01:17]} 30. Ne6 {[%clk 0:00:09]}  Rb7 {[%clk 0:00:38]} 31. b5 {[%clk 0:00:08]}  Kxe6 {[%clk 0:00:35]} 32. bxc6 {[%clk 0:00:08]}  Qf1+ {[%clk 0:00:31]} 33. Kc2 {[%clk 0:00:07]}  Qb1# {[%clk 0:00:30]} 0-1


[Site "https://www.chess.com"]

[Event "Titled Tuesday Blitz December 20 Late 2022"]
[White "Gilmanov, Mansur"]
[Black "Ozates, Tuna"]
[WhiteFideId "4166868"]
[BlackFideId "6354521"]
[WhiteElo "2377"]
[BlackElo "2151"]
[Result "0-1"]
[Round "04"]
[TimeControl "180+1"]
[Date "2022.12.21"]
[WhiteClock "0:00:02"]
[BlackClock "0:00:51"]

1. d4 {[%clk 0:01:54]}  d5 {[%clk 0:02:52]} 2. Bg5 {[%clk 0:01:53]}  f6 {[%clk 0:02:48]} 3. Bh4 {[%clk 0:01:53]}  Nh6 {[%clk 0:02:48]} 4. e3 {[%clk 0:01:53]}  Nf5 {[%clk 0:02:46]} 5. Bg3 {[%clk 0:01:53]}  h5 {[%clk 0:02:39]} 6. Be2 {[%clk 0:01:45]}  h4 {[%clk 0:02:39]} 7. Bh5+ {[%clk 0:01:44]}  Kd7 {[%clk 0:02:39]} 8. c4 {[%clk 0:01:16]}  hxg3 {[%clk 0:02:34]} 9. fxg3 {[%clk 0:01:10]}  c6 {[%clk 0:02:27]} 10. cxd5 {[%clk 0:01:07]}  cxd5 {[%clk 0:02:27]} 11. Nc3 {[%clk 0:01:07]}  e6 {[%clk 0:02:27]} 12. Nh3 {[%clk 0:00:57]}  Nc6 {[%clk 0:02:24]} 13. Bg4 {[%clk 0:00:55]}  Nxe3 {[%clk 0:02:20]} 14. Bxe6+ {[%clk 0:00:52]}  Kxe6 {[%clk 0:02:20]} 15. Qe2 {[%clk 0:00:50]}  Kf7 {[%clk 0:02:16]} 16. Qxe3 {[%clk 0:00:45]}  Qe7 {[%clk 0:02:10]} 17. Qxe7+ {[%clk 0:00:44]}  Bxe7 {[%clk 0:02:05]} 18. O-O {[%clk 0:00:45]}  Bxh3 {[%clk 0:01:59]} 19. gxh3 {[%clk 0:00:42]}  Rad8 {[%clk 0:01:53]} 20. Rad1 {[%clk 0:00:42]}  Rxh3 {[%clk 0:01:37]} 21. Kg2 {[%clk 0:00:42]}  Rh5 {[%clk 0:01:34]} 22. g4 {[%clk 0:00:42]}  Rh4 {[%clk 0:01:32]} 23. h3 {[%clk 0:00:38]}  Bb4 {[%clk 0:01:22]} 24. Ne2 {[%clk 0:00:35]}  Rhh8 {[%clk 0:01:19]} 25. Ng1 {[%clk 0:00:34]}  Rhe8 {[%clk 0:01:19]} 26. Nf3 {[%clk 0:00:35]}  Re2+ {[%clk 0:01:19]} 27. Kg1 {[%clk 0:00:35]}  Rde8 {[%clk 0:01:15]} 28. Rd3 {[%clk 0:00:29]}  Bd6 {[%clk 0:01:12]} 29. a3 {[%clk 0:00:25]}  Rxb2 {[%clk 0:01:07]} 30. a4 {[%clk 0:00:19]}  Ree2 {[%clk 0:01:06]} 31. Nh4 {[%clk 0:00:15]}  Nxd4 {[%clk 0:01:01]} 32. Rc1 {[%clk 0:00:05]}  Rec2 {[%clk 0:00:55]} 33. Rxc2 {[%clk 0:00:04]}  Rxc2 {[%clk 0:00:55]} 34. Rxd4 {[%clk 0:00:01]}  Bc5 {[%clk 0:00:55]} 35. Nf3 {[%clk 0:00:02]}  Rc4 {[%clk 0:00:51]} 0-1


[Site "https://www.chess.com"]

[Event "Titled Tuesday Blitz December 20 Late 2022"]
[White "Goncalves, Davi Sulzbacher"]
[Black "Shoker, Samy"]
[WhiteFideId "2154510"]
[BlackFideId "627143"]
[WhiteElo "2182"]
[BlackElo "2493"]
[Result "0-1"]
[Round "04"]
[TimeControl "180+1"]
[Date "2022.12.21"]
[WhiteClock "0:00:09"]
[BlackClock "0:00:28"]

1. Nf3 {[%clk 0:03:00]}  g6 {[%clk 0:02:28]} 2. g3 {[%clk 0:03:00]}  Bg7 {[%clk 0:02:29]} 3. Bg2 {[%clk 0:03:01]}  d6 {[%clk 0:02:30]} 4. O-O {[%clk 0:03:01]}  Nf6 {[%clk 0:02:31]} 5. d4 {[%clk 0:03:02]}  O-O {[%clk 0:02:31]} 6. c4 {[%clk 0:03:03]}  Nc6 {[%clk 0:02:32]} 7. Nc3 {[%clk 0:03:03]}  a6 {[%clk 0:02:33]} 8. b3 {[%clk 0:03:02]}  Bg4 {[%clk 0:02:30]} 9. Bb2 {[%clk 0:03:00]}  Nd7 {[%clk 0:02:29]} 10. e3 {[%clk 0:02:48]}  e5 {[%clk 0:02:29]} 11. d5 {[%clk 0:02:46]}  Ne7 {[%clk 0:02:29]} 12. h3 {[%clk 0:02:46]}  Bxf3 {[%clk 0:02:29]} 13. Qxf3 {[%clk 0:02:44]}  f5 {[%clk 0:02:28]} 14. e4 {[%clk 0:02:39]}  f4 {[%clk 0:02:21]} 15. Ne2 {[%clk 0:02:09]}  fxg3 {[%clk 0:02:17]} 16. Qxg3 {[%clk 0:02:09]}  Nf6 {[%clk 0:02:18]} 17. f4 {[%clk 0:02:02]}  Nh5 {[%clk 0:02:13]} 18. Qg4 {[%clk 0:01:37]}  exf4 {[%clk 0:01:55]} 19. Bxg7 {[%clk 0:01:29]}  Kxg7 {[%clk 0:01:56]} 20. Nd4 {[%clk 0:01:27]}  Rf6 {[%clk 0:01:46]} 21. Ne6+ {[%clk 0:01:25]}  Rxe6 {[%clk 0:01:46]} 22. Qxe6 {[%clk 0:01:26]}  Ng8 {[%clk 0:01:42]} 23. e5 {[%clk 0:01:16]}  dxe5 {[%clk 0:01:37]} 24. Qxe5+ {[%clk 0:01:16]}  Ngf6 {[%clk 0:01:34]} 25. Rae1 {[%clk 0:01:02]}  Kh6 {[%clk 0:01:10]} 26. Bf3 {[%clk 0:00:33]}  Qd7 {[%clk 0:01:08]} 27. Bg4 {[%clk 0:00:31]}  Nxg4 {[%clk 0:01:05]} 28. Qe7 {[%clk 0:00:18]}  Qf5 {[%clk 0:00:51]} 29. Qe6 {[%clk 0:00:17]}  Ne3 {[%clk 0:00:48]} 30. Rxe3 {[%clk 0:00:14]}  Qg5+ {[%clk 0:00:45]} 31. Qg4 {[%clk 0:00:12]}  fxe3 {[%clk 0:00:45]} 32. Rf7 {[%clk 0:00:11]}  Qxg4+ {[%clk 0:00:34]} 33. hxg4 {[%clk 0:00:12]}  Ng3 {[%clk 0:00:32]} 34. Re7 {[%clk 0:00:10]}  Kg5 {[%clk 0:00:30]} 35. Kg2 {[%clk 0:00:09]}  Kxg4 {[%clk 0:00:28]} 36. Rxe3 {[%clk 0:00:08]}  Nf5 {[%clk 0:00:28]} 37. Re4+ {[%clk 0:00:09]}  Kg5 {[%clk 0:00:28]} 38. c5 {[%clk 0:00:09]}  Rd8 {[%clk 0:00:28]} 39. d6 {[%clk 0:00:09]}  cxd6 {[%clk 0:00:29]} 40. Rb4 {[%clk 0:00:08]}  Rd7 {[%clk 0:00:28]} 41. Rxb7 {[%clk 0:00:09]}  Rxb7 {[%clk 0:00:28]} 0-1


[Site "https://www.chess.com"]

[Event "Titled Tuesday Blitz December 20 Late 2022"]
[White "Gorodetzky, David"]
[Black "Melian, Juan Sebastian"]
[WhiteFideId "2813416"]
[BlackFideId "3706575"]
[WhiteElo "2484"]
[BlackElo "2044"]
[Result "1-0"]
[Round "04"]
[TimeControl "180+1"]
[Date "2022.12.21"]
[WhiteClock "0:00:06"]
[BlackClock "0:00:04"]

1. c4 {[%clk 0:03:00]}  Nf6 {[%clk 0:02:59]} 2. Nc3 {[%clk 0:03:00]}  e5 {[%clk 0:02:53]} 3. Nf3 {[%clk 0:03:00]}  Nc6 {[%clk 0:02:53]} 4. g3 {[%clk 0:03:00]}  g6 {[%clk 0:02:50]} 5. Bg2 {[%clk 0:03:00]}  Bg7 {[%clk 0:02:50]} 6. O-O {[%clk 0:03:01]}  O-O {[%clk 0:02:49]} 7. d4 {[%clk 0:03:02]}  exd4 {[%clk 0:02:49]} 8. Nxd4 {[%clk 0:03:03]}  Re8 {[%clk 0:02:44]} 9. Nxc6 {[%clk 0:03:02]}  bxc6 {[%clk 0:02:45]} 10. e4 {[%clk 0:02:54]}  Rb8 {[%clk 0:02:32]} 11. Qc2 {[%clk 0:02:53]}  d6 {[%clk 0:02:31]} 12. h3 {[%clk 0:02:46]}  Nd7 {[%clk 0:02:30]} 13. Be3 {[%clk 0:02:45]}  Nc5 {[%clk 0:02:11]} 14. Rad1 {[%clk 0:02:41]}  Qe7 {[%clk 0:02:11]} 15. Rfe1 {[%clk 0:02:40]}  Be6 {[%clk 0:02:08]} 16. b3 {[%clk 0:02:36]}  a5 {[%clk 0:02:06]} 17. e5 {[%clk 0:02:28]}  dxe5 {[%clk 0:02:00]} 18. Bxc6 {[%clk 0:02:27]}  Red8 {[%clk 0:02:01]} 19. Nd5 {[%clk 0:02:27]}  Bxd5 {[%clk 0:01:49]} 20. cxd5 {[%clk 0:02:08]}  Na6 {[%clk 0:01:49]} 21. Qc4 {[%clk 0:02:02]}  Nb4 {[%clk 0:01:35]} 22. Bc5 {[%clk 0:02:01]}  Qf6 {[%clk 0:01:33]} 23. Ba4 {[%clk 0:01:37]}  Nxa2 {[%clk 0:01:27]} 24. Rd2 {[%clk 0:01:02]}  Nb4 {[%clk 0:01:12]} 25. Bxb4 {[%clk 0:01:03]}  axb4 {[%clk 0:01:00]} 26. Qxc7 {[%clk 0:01:03]}  Bf8 {[%clk 0:00:53]} 27. Bc6 {[%clk 0:00:54]}  Bd6 {[%clk 0:00:49]} 28. Qa7 {[%clk 0:00:55]}  h5 {[%clk 0:00:48]} 29. h4 {[%clk 0:00:55]}  g5 {[%clk 0:00:46]} 30. Re4 {[%clk 0:00:43]}  Kg7 {[%clk 0:00:40]} 31. Qe3 {[%clk 0:00:42]}  g4 {[%clk 0:00:37]} 32. Ra2 {[%clk 0:00:41]}  Qe7 {[%clk 0:00:31]} 33. Ra7 {[%clk 0:00:40]}  Qf6 {[%clk 0:00:28]} 34. Bd7 {[%clk 0:00:31]}  Kg6 {[%clk 0:00:15]} 35. Rc4 {[%clk 0:00:30]}  Bf8 {[%clk 0:00:13]} 36. Rc6 {[%clk 0:00:26]}  Bd6 {[%clk 0:00:13]} 37. Qe4+ {[%clk 0:00:26]}  Kg7 {[%clk 0:00:13]} 38. Be6 {[%clk 0:00:26]}  Be7 {[%clk 0:00:05]} 39. Bxf7 {[%clk 0:00:09]}  Qxf7 {[%clk 0:00:06]} 40. Qxe5+ {[%clk 0:00:07]}  Kg8 {[%clk 0:00:04]} 41. Rxe7 {[%clk 0:00:06]} 1-0


[Site "https://www.chess.com"]